fUSD/lending_fUSD_20251126
["ID","MTS","AMOUNT","RATE_DAILY","PERIOD"]
[394928021,1764146501559,992.87,0.00042031,120]
[394928022,1764146501788,992.87,0.00042031,120]
[394928023,1764146502027,992.87,0.00042031,120]
[394928024,1764146502280,992.87,0.00042031,120]
[394928025,1764146502500,992.87,0.00042031,120]
[394928026,1764146502735,992.87,0.00042031,120]
[394928027,1764146503202,992.87,0.00042031,120]
[394928028,1764146503251,992.87,0.00042031,120]
[394928029,1764146503463,992.87,0.00042031,120]
[394928030,1764146503697,992.87,0.00042031,120]
[394928031,1764146503938,992.87,0.00042031,120]
[394928032,1764146504187,992.87,0.00042031,120]
[394928033,1764146504429,992.87,0.00042031,120]
[394928034,1764146504661,993.0347278,0.00042031,120]
[394928036,1764147031887,-485.73760851,0.00020596,2]
[394928037,1764147031989,-1932.135623,0.00020596,2]
[394928038,1764147032072,-445.19925725,0.00020596,2]
[394928132,1764147043543,-722.88789584,0.00020596,2]
[394928133,1764147043648,-572.43625996,0.00020596,2]
[394928134,1764147044326,-1097.0,0.00020596,2]
[394928139,1764147046219,-4007.74058846,0.00020596,2]
[394928143,1764147124991,6888.0,0.00042031,120]
[394928144,1764147185811,1994.6885148,0.00042031,120]
[394928146,1764147310235,268.31,0.00013699,2]
[394928148,1764148131075,50000.0,0.00042031,30]
[394928149,1764148135213,50000.0,0.00042031,31]
[394928150,1764148143092,541.89,0.00042031,120]
[394928151,1764148143323,541.89,0.00042031,120]
[394928152,1764148143554,541.89,0.00042031,120]
[394928153,1764148143776,541.89,0.00042031,120]
[394928154,1764148144011,541.89,0.00042031,120]
[394928155,1764148144255,541.89,0.00042031,120]
[394928156,1764148144488,541.89,0.00042031,120]
[394928157,1764148144842,541.89,0.00042031,120]
[394928158,1764148145069,541.89,0.00042031,120]
[394928159,1764148145314,541.89,0.00042031,120]
[394928160,1764148145642,541.89,0.00042031,120]
[394928161,1764148145877,541.89,0.00042031,120]
[394928162,1764148146101,541.89,0.00042031,120]
[394928163,1764148146341,541.89,0.00042031,120]
[394928164,1764148146607,541.89,0.00042031,120]
[394928165,1764148146876,541.89,0.00042031,120]
[394928166,1764148147130,541.89,0.00042031,120]
[394928167,1764148147357,541.89,0.00042031,120]
[394928168,1764148147586,541.89,0.00042031,120]
[394928169,1764148147856,541.89,0.00042031,120]
[394928170,1764148148092,541.89,0.00042031,120]
[394928171,1764148148338,541.89,0.00042031,120]
[394928172,1764148148577,541.89,0.00042031,120]
[394928173,1764148148842,542.02340725,0.00042031,120]
[394928174,1764148150968,50000.0,0.00042031,32]
[394928175,1764148155376,50000.0,0.00042031,33]
[394928176,1764148160430,50000.0,0.00042031,34]
[394928177,1764148166461,50000.0,0.00042031,35]
[394928178,1764148169657,50000.0,0.00042031,36]
[394928179,1764148173190,50000.0,0.00042031,37]
[394928180,1764148210924,50000.0,0.00042031,38]
[394928182,1764148232113,-268.31,0.00020187,2]
[394928183,1764148232123,-500.0,0.00020187,2]
[394928184,1764148232133,-484.25854022,0.00020187,2]
[394928185,1764148232271,-15.74145978,0.00020187,2]
[394928186,1764148232280,-291.51854022,0.0002045,2]
[394928200,1764148238218,-501.06049697,0.0002045,2]
[394928264,1764148246223,-3147.85293905,0.0002045,2]
[394928266,1764148246236,-8495.68359366,0.0002045,2]
[394928268,1764148246246,-342.54256433,0.00020735,2]
[394928270,1764148246255,-168.0,0.00020835,2]
[394928272,1764148246265,-168.0,0.00020914,2]
[394928274,1764148246275,-252.0,0.00021302,2]
[394928276,1764148246284,-4435.32188748,0.0002138,2]
[394928287,1764148472169,151.0,0.00042031,30]
[394928288,1764148472531,180.898488,0.00042031,30]
[394928289,1764148643354,2504.19312224,0.00042031,30]
[394928290,1764148847604,152.0,0.00011492,2]
[394928291,1764148847807,152.0,0.00017239,2]
[394928292,1764149097509,778.86,0.00042031,120]
[394928293,1764149097744,778.86,0.00042031,120]
[394928294,1764149098180,778.86,0.00042031,120]
[394928295,1764149098400,778.86,0.00042031,120]
[394928296,1764149098751,778.86,0.00042031,120]
[394928297,1764149098992,778.86,0.00042031,120]
[394928298,1764149099240,778.86,0.00042031,120]
[394928299,1764149099463,778.86,0.00042031,120]
[394928300,1764149099687,778.86,0.00042031,120]
[394928301,1764149099962,778.86,0.00042031,120]
[394928302,1764149100203,778.86,0.00042031,120]
[394928303,1764149100444,778.86,0.00042031,120]
[394928304,1764149100732,778.86,0.00042031,120]
[394928305,1764149101041,778.86,0.00042031,120]
[394928306,1764149101305,778.86,0.00042031,120]
[394928307,1764149101550,778.86,0.00042031,120]
[394928308,1764149101833,778.86,0.00042031,120]
[394928309,1764149102102,778.86,0.00042031,120]
[394928310,1764149102360,778.86,0.00042031,120]
[394928311,1764149102592,778.86,0.00042031,120]
[394928312,1764149102854,778.86,0.00042031,120]
[394928313,1764149103104,778.86,0.00042031,120]
[394928314,1764149103356,778.86,0.00042031,120]
[394928315,1764149103588,779.061433,0.00042031,120]
[394928316,1764149133011,671.65740584,0.00042031,30]
[394928317,1764149176595,2960.33966582,0.000209,30]
[394928318,1764149214279,1932.135623,0.000162,5]
[394928319,1764149218593,251.88286634,0.00042031,120]
[394928320,1764149233392,154.71,0.00021577,30]
[394928322,1764149428105,500.0,0.00042031,120]
[394928323,1764149428347,500.0,0.00042031,120]
[394928324,1764149428581,500.0,0.00042031,120]
[394928325,1764149428810,500.0,0.00042031,120]
[394928326,1764149429042,500.0,0.00042031,120]
[394928327,1764149429290,500.0,0.00042031,120]
[394928328,1764149429526,500.0,0.00042031,120]
[394928329,1764149429772,500.0,0.00042031,120]
[394928330,1764149430027,500.0,0.00042031,120]
[394928331,1764149430258,574.60620109,0.00042031,120]
[394928349,1764149432202,-3467.1727352,0.0002033,2]
[394928351,1764149432212,-717.09336672,0.0002033,2]
[394928356,1764149432256,-1060.09684251,0.0002033,2]
[394928367,1764149438245,-1384.07642017,0.0002033,2]
[394928368,1764149438259,-342.54256433,0.00020704,2]
[394928369,1764149438268,-507.0,0.00020804,2]
[394928370,1764149438278,-507.0,0.00021011,2]
[394928371,1764149438288,-507.0,0.00021132,2]
[394928372,1764149438297,-110.21663921,0.0002138,2]
[394928373,1764149438309,-189.14147331,0.0002138,2]
[394928374,1764149438320,-211.0,0.00021391,2]
[394928375,1764149438329,-172.24443117,0.00021426,2]
[394928376,1764149438341,-334.75556883,0.00021426,2]
[394928377,1764149438350,-805.0,0.000215,2]
[394928378,1764149438360,-168.0,0.00021571,2]
[394928379,1764149438370,-52.49501829,0.00021643,2]
[394928380,1764149438382,-947.50498171,0.00021643,2]
[394928381,1764149438392,-201.77,0.00021674,2]
[394928382,1764149438403,-1128.28979997,0.00021725,2]
[394928383,1764149438415,-1317.00928158,0.00021725,2]
[394928384,1764149438424,-200.0,0.00021762,2]
[394928385,1764149438433,-166.66,0.00021776,2]
[394928386,1764149438443,-629.08443244,0.00021913,2]
[394928390,1764149440328,-213.91556756,0.00021913,2]
[394928391,1764149440338,-542.84443244,0.00021931,2]
[394928392,1764149440383,-720.18156756,0.00021931,2]
[394928393,1764149440392,-827.0,0.00021931,2]
[394928394,1764149440403,-662.958,0.00021931,2]
[394928395,1764149440413,-2494.903,0.00021931,2]
[394928396,1764149440423,-252.0,0.00021931,2]
[394928397,1764149440434,-2716.0,0.00021931,2]
[394928398,1764149440444,-181.0,0.00022,2]
[394928399,1764149440453,-333.39801329,0.000221,2]
[394928400,1764149440462,-484.90289628,0.000221,2]
[394928401,1764149440474,-492.71710372,0.000221,2]
[394928402,1764149440483,-166.66,0.00022234,30]
[394928403,1764149440496,-495.0,0.0002234,2]
[394928404,1764149440506,-250.0,0.00022363,2]
[394928405,1764149440517,-260.50884733,0.00022363,2]
[394928406,1764149440527,-3467.1727352,0.0002243,2]
[394928407,1764149440536,-445.43849925,0.000225,2]
[394928408,1764149440546,-3369.72160923,0.00022551,2]
[394928409,1764149440557,-8943.78386462,0.00022551,2]
[394928410,1764149440569,-122.61009605,0.00022551,2]
[394928411,1764149440579,-150.99,0.00022562,2]
[394928412,1764149440589,-3991.95,0.00022562,2]
[394928413,1764149440600,-495.0,0.00022677,2]
[394928414,1764149440610,-166.66,0.00022693,30]
[394928415,1764149440619,-200.0,0.00022865,2]
[394928416,1764149440629,-705.3739293,0.00022909,2]
[394928417,1764149440641,-1933.47900502,0.00022966,2]
[394928418,1764149440650,-152.0,0.00022985,2]
[394928419,1764149440660,-1159.48563115,0.00022988,2]
[394928420,1764149440672,-1101.93040364,0.00022988,2]
[394928421,1764149440682,-174.73482009,0.00022988,2]
[394928422,1764149440694,-5382.60939808,0.00022988,2]
[394928423,1764149440704,-156.37168023,0.00022988,2]
[394928424,1764149440713,-250.0,0.00022992,2]
[394928425,1764149440722,-1878.19393285,0.0002303,2]
[394928426,1764149440734,-1557.38467929,0.0002303,2]
[394928427,1764149440747,-346.89729276,0.0002303,2]
[394928428,1764149440821,-714.30435223,0.0002303,2]
[394928429,1764149440832,-503.21974287,0.0002303,2]
[394928430,1764149440842,-901.8603174,0.00023077,2]
[394928445,1764149444830,-561.0,0.00021931,2]
[394928446,1764149444841,-4910.5196826,0.00023077,2]
[394928447,1764149444850,-3263.2063174,0.00023077,2]
[394928448,1764149444940,-2549.1736826,0.00023077,2]
[394928449,1764149444950,-457.0,0.00023086,2]
[394928450,1764149444959,-500.0,0.00023086,2]
[394928451,1764149444968,-150.0,0.00023086,2]
[394928452,1764149444977,-500.0,0.00023086,2]
[394928453,1764149444986,-352.37245198,0.00023086,2]
[394928454,1764149444995,-185.02860523,0.00023086,2]
[394928461,1764149446497,-127.0616784,0.00023086,2]
[394928462,1764149446507,-349.4483216,0.00023086,2]
[394928464,1764150025052,500.0,0.00042031,120]
[394928465,1764150025298,499.65393055,0.00042031,120]
[394928466,1764150450117,157.638637,0.00042031,50]
[394928467,1764150450421,157.638637,0.00042031,50]
[394928468,1764150450750,157.638637,0.00042031,50]
[394928469,1764150451031,157.638637,0.00042031,50]
[394928470,1764150451319,157.638637,0.00042031,50]
[394928471,1764150451700,157.638637,0.00042031,50]
[394928472,1764150451912,157.638637,0.00042031,50]
[394928473,1764150452224,157.638637,0.00042031,50]
[394928474,1764150452528,157.638637,0.00042031,50]
[394928475,1764150453133,157.638637,0.00042031,50]
[394928476,1764150453459,157.638637,0.00042031,50]
[394928477,1764150453755,157.638637,0.00042031,50]
[394928478,1764150454043,157.638637,0.00042031,50]
[394928479,1764150454338,157.638637,0.00042031,50]
[394928480,1764150454644,157.638637,0.00042031,50]
[394928481,1764150454942,157.638637,0.00042031,50]
[394928482,1764150455248,157.638637,0.00042031,50]
[394928483,1764150455553,157.638637,0.00042031,50]
[394928484,1764150455921,157.638637,0.00042031,50]
[394928485,1764150456206,157.638629,0.00042031,50]
[394928486,1764150466750,257.05,0.00013699,2]
[394928488,1764150631412,-257.05,0.00020187,2]
[394928489,1764150631422,-3784.11407892,0.00020261,2]
[394928490,1764150631434,-161.44592108,0.00020261,2]
[394928491,1764150631444,-161.26,0.0002234,2]
[394928492,1764150631452,-611.776,0.0002244,2]
[394928494,1764150631461,-1328.25,0.0002244,2]
[394928495,1764150631470,-1111.03614445,0.0002244,2]
[394928496,1764150631516,-145.96385555,0.0002244,2]
[394928497,1764150631525,-252.0,0.0002244,2]
[394928498,1764150631534,-1711.419,0.0002244,2]
[394928499,1764150631544,-19539.5510271,0.00022693,2]
[394928500,1764150631553,-5447.6012384,0.00022693,2]
[394928501,1764150631563,-8354.58182286,0.00022693,2]
[394928502,1764150631577,-609.653476,0.00022693,2]
[394928503,1764150631589,-431.66494134,0.00022693,2]
[394928504,1764150631598,-76.24465962,0.00022907,2]
[394928662,1764150637528,-98.49016042,0.00022907,2]
[394928663,1764150637538,-402.87345515,0.00022907,2]
[394928665,1764150639548,-273.48799988,0.00022907,2]
[394928666,1764150639758,-547.20000002,0.00022907,2]
[394928679,1764150643018,-1008.15,0.0002244,2]
[394928682,1764150645644,-1858.96,0.0002244,2]
[394928683,1764150645657,-398.32238014,0.0002244,2]
[394928715,1764151258551,517.56266015,0.00042031,120]
[394928718,1764151406254,572.87511682,0.00042031,120]
[394928719,1764151492621,15109.21232477,0.00042031,30]
[394928720,1764151827864,166.66,0.00021921,30]
[394928726,1764151831595,-629.67,0.00021,2]
[394928727,1764151831701,-264.5794,0.00021,2]
[394928828,1764151839833,-270.20273343,0.00021,2]
[394928829,1764151839845,-2835.54786657,0.00021,2]
[394928830,1764151839854,-166.66,0.00021035,2]
[394928831,1764151839864,-166.66,0.00021478,2]
[394928832,1764151839873,-300.0,0.00021999,2]
[394928833,1764151839882,-5000.53930853,0.00022,7]
[394928853,1764151844870,-54999.46069147,0.00022,7]
[394928854,1764151844879,-166.66,0.00022364,30]
[394928855,1764151844888,-175.971,0.0002244,2]
[394928856,1764151844897,-189.598,0.0002244,2]
[394928857,1764151844906,-162.697,0.0002244,2]
[394928858,1764151844915,-210.644,0.0002244,2]
[394928859,1764151844925,-150.455,0.0002244,2]
[394928860,1764151844938,-610.0,0.0002244,2]
[394928861,1764151844948,-1321.0,0.0002244,2]
[394928862,1764151844957,-252.0,0.0002244,2]
[394928863,1764151844968,-6502.0,0.0002244,2]
[394928864,1764151844977,-3151.7240964,0.00022665,2]
[394928865,1764151844986,-157.3901978,0.00022665,2]
[394928866,1764151844995,-4189.3376829,0.00022665,2]
[394928867,1764151845005,-962.6,0.000227,2]
[394928868,1764151845015,-166.66,0.00022807,30]
[394928869,1764151845025,-378.95758642,0.00022844,2]
[394928870,1764151845034,-500.0,0.00022844,2]
[394928871,1764151845045,-199.85719161,0.00022844,2]
[394928872,1764151845055,-500.0,0.00022844,2]
[394928873,1764151845065,-500.0,0.00022844,2]
[394928874,1764151845074,-500.0,0.00022844,2]
[394928875,1764151845083,-204.53630829,0.00022844,2]
[394928876,1764151845093,-4978.21603658,0.00022845,2]
[394928877,1764151845102,-3714.62598631,0.00022845,2]
[394928878,1764151845118,-500.0,0.00022873,2]
[394928879,1764151845129,-500.0,0.00022886,2]
[394928880,1764151845140,-500.0,0.00022886,2]
[394928881,1764151845149,-500.0,0.00022886,2]
[394928882,1764151845158,-500.0,0.00022886,2]
[394928883,1764151845167,-500.0,0.00022886,2]
[394928884,1764151845176,-500.53847004,0.00022886,2]
[394928885,1764151845185,-500.0,0.00022886,2]
[394928886,1764151845195,-463.62870206,0.00022886,2]
[394928887,1764151845204,-246.66071638,0.00022886,2]
[394928888,1764151845214,-760000.0,0.00022887,2]
[394928889,1764151845223,-335.53277,0.00022907,2]
[394928890,1764151845232,-200.0,0.00022945,2]
[394928891,1764151845243,-1035.2,0.00022945,2]
[394928892,1764151845255,-308.11,0.00022973,2]
[394928893,1764151845265,-173.39,0.00023,2]
[394928894,1764151845275,-5000.0,0.00023006,2]
[394928895,1764151845285,-154.67,0.0002302,2]
[394928896,1764151845296,-250.0,0.00023059,2]
[394928897,1764151845305,-999.0,0.00023117,3]
[394928898,1764151845315,-438.0,0.00023123,2]
[394928899,1764151845324,-500.0,0.00023123,2]
[394928900,1764151845333,-150.0,0.00023123,2]
[394928901,1764151845343,-551.5,0.00023123,2]
[394928902,1764151845352,-151.07,0.00023123,2]
[394928903,1764151845361,-169.85,0.00023123,2]
[394928904,1764151845371,-152.08,0.00023123,2]
[394928905,1764151845380,-417.6,0.00023123,2]
[394928906,1764151845389,-231.18,0.00023123,2]
[394928907,1764151845398,-2459.56,0.00023123,2]
[394928908,1764151845407,-150.0,0.00023123,2]
[394928909,1764151845416,-551.5,0.00023123,2]
[394928910,1764151845426,-150.0,0.00023123,2]
[394928911,1764151845435,-169.85,0.00023123,2]
[394928912,1764151845444,-150.0,0.00023123,2]
[394928914,1764151845452,-177.74,0.00023123,2]
[394928915,1764151845462,-551.5,0.00023123,2]
[394928916,1764151845471,-150.0,0.00023123,2]
[394928917,1764151845480,-150.0,0.00023123,2]
[394928918,1764151845489,-169.85,0.00023123,2]
[394928919,1764151845498,-150.0,0.00023123,2]
[394928920,1764151845508,-549.66,0.00023123,2]
[394928921,1764151845517,-169.65,0.00023123,2]
[394928922,1764151845526,-150.0,0.00023123,2]
[394928923,1764151845536,-150.0,0.00023123,2]
[394928924,1764151845545,-177.74,0.00023123,2]
[394928925,1764151845555,-150.0,0.00023123,2]
[394928926,1764151845564,-177.74,0.00023123,2]
[394928927,1764151845573,-177.74,0.00023123,2]
[394928928,1764151845582,-177.74,0.00023123,2]
[394928929,1764151845591,-177.74,0.00023123,2]
[394928930,1764151845600,-177.74,0.00023123,2]
[394928931,1764151845610,-177.74,0.00023123,2]
[394928933,1764151845619,-177.74,0.00023123,2]
[394928935,1764151845629,-177.74,0.00023123,2]
[394928937,1764151845638,-177.74,0.00023123,2]
[394928939,1764151845647,-177.74,0.00023123,2]
[394928941,1764151845656,-177.74,0.00023123,2]
[394928943,1764151845665,-177.74,0.00023123,2]
[394928945,1764151845674,-2000.0,0.00023154,2]
[394928947,1764151845684,-33538.77,0.00023155,2]
[394928948,1764151845693,-434.83,0.00023164,2]
[394928949,1764151845702,-150.39,0.00023242,2]
[394928950,1764151845712,-166.66,0.0002325,30]
[394928951,1764151845721,-438.0,0.0002326,2]
[394928952,1764151845730,-500.0,0.0002326,2]
[394928953,1764151845740,-438.0,0.00023397,2]
[394928954,1764151845750,-500.0,0.00023397,2]
[394928955,1764151845760,-1000.0,0.00023421,2]
[394928956,1764151845769,-438.0,0.00023534,2]
[394928957,1764151845779,-500.0,0.00023534,2]
[394928958,1764151845788,-438.0,0.00023671,2]
[394928959,1764151845798,-500.0,0.00023671,2]
[394928960,1764151845807,-166.76,0.00023709,2]
[394928961,1764151845818,-268.05682322,0.00023735,2]
[394928962,1764151845828,-438.0,0.00023808,2]
[394928963,1764151845837,-500.0,0.00023808,2]
[394928964,1764151845846,-732.44,0.00023808,2]
[394928965,1764151845855,-702.04,0.00023808,2]
[394928966,1764151845865,-702.04,0.00023808,2]
[394928967,1764151845874,-300.0,0.00023906,2]
[394928968,1764151845883,-438.0,0.00023945,2]
[394928969,1764151845891,-500.0,0.00023945,2]
[394928970,1764151845901,-177.74,0.00023945,2]
[394928971,1764151845916,-195.4,0.00023945,2]
[394928972,1764151845926,-150.0,0.00023945,2]
[394928973,1764151845938,-998.38723624,0.00023968,2]
[394928974,1764151845947,-434.83,0.00024032,2]
[394928975,1764151845955,-438.0,0.00024082,2]
[394928976,1764151845965,-500.0,0.00024082,2]
[394928977,1764151845974,-438.0,0.00024219,2]
[394928978,1764151845984,-334.33821684,0.00024219,2]
[394928979,1764151845995,-427.1289864,0.00024285,2]
[394928980,1764151846005,-1000.0,0.00024349,2]
[394928981,1764151846015,-438.0,0.00024356,2]
[394928982,1764151846024,-702.04,0.00024384,2]
[394928984,1764151846033,-438.0,0.00024493,2]
[394928985,1764151846041,-512.0,0.00024502,7]
[394928986,1764151846050,-511.0,0.00024562,7]
[394928987,1764151846060,-58726.42012475,0.0002458,2]
[394928988,1764151846071,-307.0,0.00024597,2]
[394928989,1764151846081,-438.0,0.0002463,2]
[394928990,1764151846090,-1000.0,0.00024658,2]
[394928991,1764151846100,-161.57,0.00024658,2]
[394928992,1764151846110,-10321.60404815,0.00024667,2]
[394928993,1764151846120,-438.0,0.00024767,2]
[394928994,1764151846129,-702.04,0.00024767,2]
[394928995,1764151846138,-702.04,0.00024767,2]
[394928996,1764151846148,-702.04,0.00024767,2]
[394928997,1764151846158,-702.04,0.00024767,2]
[394928998,1764151846167,-702.04,0.00024767,2]
[394928999,1764151846176,-702.04,0.00024767,2]
[394929000,1764151846185,-702.04,0.00024767,2]
[394929002,1764151846195,-702.04,0.00024767,2]
[394929003,1764151846204,-702.04,0.00024767,2]
[394929004,1764151846213,-1366.03,0.00024767,2]
[394929005,1764151846222,-702.04,0.00024767,2]
[394929006,1764151846231,-702.04,0.00024767,2]
[394929007,1764151846240,-702.04,0.00024767,2]
[394929008,1764151846250,-702.04,0.00024767,2]
[394929009,1764151846259,-702.04,0.00024767,2]
[394929010,1764151846268,-702.04,0.00024767,2]
[394929011,1764151846277,-702.04,0.00024767,2]
[394929012,1764151846286,-702.04,0.00024767,2]
[394929013,1764151846295,-702.04,0.00024767,2]
[394929014,1764151846306,-702.04,0.00024767,2]
[394929015,1764151846317,-702.04,0.00024767,2]
[394929016,1764151846328,-702.04,0.00024767,2]
[394929017,1764151846337,-702.04,0.00024767,2]
[394929018,1764151846348,-702.04,0.00024767,2]
[394929019,1764151846358,-162.99698394,0.0002479,2]
[394929020,1764151846367,-150.56,0.0002479,2]
[394929021,1764151846376,-824.0,0.000248,2]
[394929022,1764151846386,-348597.273701,0.000248,3]
[394929023,1764151846395,-4978.21603649,0.00024851,2]
[394929024,1764151846405,-3714.62598631,0.00024851,2]
[394929025,1764151846414,-500.0,0.00024873,2]
[394929026,1764151846424,-500.0,0.00024873,2]
[394929027,1764151846434,-500.0,0.00024873,2]
[394929028,1764151846444,-7746.60608224,0.00024889,3]
[394929029,1764151846453,-7746.60608224,0.0002489,3]
[394929030,1764151846462,-500.0,0.00024899,2]
[394929031,1764151846472,-500.0,0.00024899,2]
[394929032,1764151846482,-407903.694295,0.000249,3]
[394929033,1764151846491,-434.83,0.00024901,2]
[394929034,1764151846500,-438.0,0.00024904,2]
[394929035,1764151846509,-500.0,0.00024906,2]
[394929036,1764151846518,-335.53277,0.00024907,2]
[394929037,1764151846529,-320.08915517,0.00024941,2]
[394929038,1764151846539,-438.0,0.00025041,2]
[394929039,1764151846548,-438.0,0.00025178,2]
[394929040,1764151846557,-438.0,0.00025315,2]
[394929041,1764151846566,-511.0,0.0002535,2]
[394929042,1764151846575,-1000.0,0.00025421,2]
[394929043,1764151846584,-1000.0,0.00025421,2]
[394929044,1764151846594,-499.41288917,0.00025421,2]
[394929045,1764151846603,-8497.99363114,0.0002543,3]
[394929046,1764151846612,-1321.0,0.0002544,2]
[394929047,1764151846622,-6502.0,0.0002544,2]
[394929048,1764151846631,-438.0,0.00025452,2]
[394929049,1764151846640,-511.0,0.00025479,2]
[394929050,1764151846650,-934.7675881,0.00025537,2]
[394929051,1764151846660,-2096.5087253,0.00025571,2]
[394929052,1764151846670,-438.0,0.00025589,2]
[394929053,1764151846679,-8497.99363114,0.00025706,3]
[394929054,1764151846689,-168.0,0.00025708,2]
[394929055,1764151846698,-438.0,0.00025726,2]
[394929056,1764151846707,-702.04,0.00025726,2]
[394929057,1764151846716,-702.04,0.00025726,2]
[394929058,1764151846726,-702.04,0.00025726,2]
[394929059,1764151846736,-702.04,0.00025726,2]
[394929060,1764151846745,-702.04,0.00025726,2]
[394929061,1764151846754,-702.04,0.00025726,2]
[394929062,1764151846765,-681.16,0.00025726,2]
[394929063,1764151846775,-702.04,0.00025726,2]
[394929064,1764151846786,-702.04,0.00025726,2]
[394929065,1764151846796,-702.04,0.00025726,2]
[394929066,1764151846806,-8497.99363114,0.00025749,3]
[394929067,1764151846815,-434.83,0.0002577,2]
[394929068,1764151846826,-168.0,0.00025784,2]
[394929069,1764151846836,-438.0,0.00025863,2]
[394929070,1764151846845,-512.0,0.00025875,2]
[394929071,1764151846856,-1500.0,0.00025968,2]
[394929072,1764151846866,-1500.0,0.00025968,2]
[394929073,1764151846875,-511.0,0.00025992,2]
[394929074,1764151846884,-438.0,0.00026,2]
[394929075,1764151846893,-180.303,0.00026058,12]
[394929076,1764151846903,-438.0,0.00026137,2]
[394929077,1764151846913,-168.0,0.00026176,2]
[394929078,1764151846923,-208.5748416,0.00026178,2]
[394929079,1764151846934,-305.0,0.00026202,2]
[394929080,1764151846944,-467.7943276,0.00026213,2]
[394929081,1764151846955,-168.0,0.0002626,2]
[394929082,1764151846964,-460.1545996,0.00026274,2]
[394929083,1764151846974,-8497.99363114,0.00026351,3]
[394929084,1764151846983,-511.0,0.00026357,2]
[394929085,1764151846992,-9037.52,0.00026371,2]
[394929086,1764151847000,-168.0,0.0002638,2]
[394929087,1764151847012,-168.0,0.00026442,2]
[394929088,1764151847021,-514.0,0.00026489,2]
[394929089,1764151847030,-8497.99363114,0.00026506,3]
[394929090,1764151847039,-2037.01217576,0.00026516,2]
[394929091,1764151847049,-820.89500357,0.00026516,2]
[394929092,1764151847059,-434.83,0.00026638,2]
[394929093,1764151847069,-257.05,0.00026676,2]
[394929094,1764151847078,-511.0,0.00026738,2]
[394929095,1764151847086,-305.0,0.00026756,2]
[394929096,1764151847096,-511.0,0.00026826,2]
[394929097,1764151847105,-4978.21603649,0.00026857,2]
[394929098,1764151847115,-3714.62598631,0.00026857,2]
[394929099,1764151847124,-335.53277,0.00026907,2]
[394929100,1764151847133,-305.0,0.00027038,7]
[394929101,1764151847143,-511.0,0.00027041,2]
[394929102,1764151847151,-1000.0,0.00027054,2]
[394929103,1764151847159,-150.39,0.00027116,120]
[394929104,1764151847168,-305.0,0.0002721,2]
[394929105,1764151847177,-8497.99363114,0.00027377,3]
[394929106,1764151847317,-3534.26,0.00027397,2]
[394929107,1764151847328,-500.0,0.00027397,5]
[394929108,1764151847337,-277.38,0.000274,7]
[394929109,1764151847346,-153.32,0.000274,7]
[394929110,1764151847356,-162.99698394,0.00027475,2]
[394929111,1764151847367,-168.0,0.00027511,2]
[394929112,1764151847377,-168.0,0.00027516,2]
[394929113,1764151847386,-168.0,0.00027536,2]
[394929114,1764151847395,-154.71,0.0002757,30]
[394929115,1764151847404,-150.0,0.00028055,2]